bitfinex/quotes_ETHUSD_20241204
["timestamp","ask_amount","ask_price","bid_price","bid_amount"]
[1733332536186,2.125401,3782.6,3781.6,2.64436]
[1733332536397,1.6437,3782.6,3781.7,3.0]
[1733332536683,0.03304524,3782.5,3780.2,0.34277075]
[1733332536854,1.5946,3781.6,3780.0,2.64543]
[1733332537265,2.64477,3781.1,3779.6,2.64576]
[1733332537439,2.64488,3780.9,3779.3,2.64597]
[1733332537656,2.64488,3780.9,3779.2,1.6282]
[1733332537657,1.5946,3780.8,3779.1,3.18030068]
[1733332537837,1.5946,3780.8,3779.1,2.64612]
[1733332538042,1.5946,3780.8,3778.4,1.6282]
[1733332538043,1.5946,3780.2,3779.2,0.49726189]
[1733332538244,1.5946,3780.2,3778.8,2.64632]
[1733332538509,1.5946,3780.2,3779.0,0.5058855]
[1733332538642,1.5946,3780.2,3778.0,1.6282]
[1733332538845,2.64594,3779.4,3777.7,2.64707]
[1733332539092,3.91751736,3780.2,3777.3,1.6282]
[1733332539093,1.62767599,3779.3,3777.3,1.6282]
[1733332539294,1.5946,3779.3,3777.7,0.5088436]
[1733332539581,1.5946,3779.3,3777.7,2.6471]
[1733332539814,1.5946,3779.3,3777.4,2.64727]
[1733332540004,1.5946,3779.3,3777.3,2.12210269]
[1733332540005,1.75406,3779.3,3778.1,2.64683]
[1733332540143,1.5946,3779.3,3777.7,2.64706]
[1733332540483,1.5946,3779.3,3779.2,2.64606]
[1733332540691,1.5946,3779.3,3777.5,0.24445374]
[1733332540994,1.5946,3779.3,3779.2,2.64606]
[1733332541171,1.5955,3780.1,3777.6,0.88594723]
[1733332541355,1.80905656,3780.1,3778.7,2.64637]
[1733332541557,1.84212614,3780.1,3778.8,3.0]
[1733332541883,1.6296,3780.0,3778.1,2.64683]
[1733332542085,1.6296,3779.9,3778.0,2.6469]
[1733332542255,1.6296,3779.9,3777.6,0.55]
[1733332542456,2.35202274,3779.9,3777.6,0.55]
[1733332542657,2.35202274,3779.9,3778.4,2.6466]
[1733332542968,2.35202274,3779.9,3777.6,0.55]
[1733332542969,1.66267345,3779.8,3778.1,2.64676]
[1733332543174,1.6296,3779.8,3777.6,0.55]
[1733332543377,1.6296,3779.8,3778.1,2.6468]
[1733332543642,0.72242274,3779.9,3777.5,0.4960142]
[1733332543643,1.5799,3779.3,3777.5,0.4960142]
[1733332543763,1.5799,3779.3,3777.2,2.64746]
[1733332543764,0.03308025,3779.2,3777.2,2.64746]
[1733332543952,1.5799,3779.1,3777.2,2.64746]
[1733332544156,1.5799,3778.9,3777.0,2.64755]
[1733332544387,1.5799,3778.6,3776.8,0.49867232]
[1733332544551,1.5799,3778.6,3776.1,2.64823]
[1733332544552,0.51746359,3778.5,3776.2,0.51725186]
[1733332544759,0.06058953,3778.4,3777.2,2.64745]
[1733332545093,0.27638484,3778.4,3776.7,2.64779]
[1733332545255,1.5598,3778.3,3776.7,2.64779]
[1733332545453,0.06051978,3778.2,3776.4,2.64799]
[1733332545701,1.5788,3778.1,3776.0,0.50890355]
[1733332545852,0.06052048,3778.0,3775.8,2.64839]
[1733332546191,0.06052048,3778.0,3776.5,2.64793]
[1733332546398,0.06052048,3778.0,3775.8,0.54164404]
[1733332546551,0.06052048,3778.0,3777.4,2.6473]
[1733332547097,0.06052048,3778.0,3777.2,3.0]
[1733332547250,0.06052048,3778.0,3775.8,0.87759127]
[1733332547251,0.06052048,3778.0,3777.4,3.0]
[1733332547481,0.06052048,3778.0,3776.0,2.64823]
[1733332547482,0.06052048,3778.0,3777.5,2.64722]
[1733332547699,0.06052048,3778.0,3776.0,0.55]
[1733332547700,0.06052048,3778.0,3777.7,3.0]
[1733332547901,0.06052048,3778.0,3777.3,3.0]
[1733332548194,0.06052048,3778.0,3777.9,5.64697]
[1733332548395,1.5058,3778.6,3777.6,3.0]
[1733332548742,1.5058,3778.6,3778.4,3.0]
[1733332548914,1.5058,3778.6,3778.5,5.64655]
[1733332549580,1.5058,3778.6,3778.4,2.64661]
[1733332549779,1.5058,3778.6,3777.6,3.0]
[1733332550020,1.5058,3778.6,3778.3,3.0]
[1733332550520,1.5058,3778.6,3777.0,2.64757]
[1733332550521,1.5058,3778.6,3778.0,3.0]
[1733332550679,1.5058,3778.6,3777.7,3.0]
[1733332550886,1.5058,3778.6,3777.4,3.0]
[1733332551083,1.5058,3778.6,3777.5,3.0]
[1733332551530,1.5058,3778.6,3778.0,2.64688]
[1733332551680,1.5058,3778.6,3777.5,5.64719]
[1733332551681,1.5058,3778.6,3777.7,3.0]
[1733332552045,1.5058,3778.6,3778.5,2.64655]
[1733332552179,1.5157,3779.8,3779.5,2.64578]
[1733332552535,1.5157,3779.8,3779.7,2.64571]
[1733332552877,1.5157,3779.8,3779.7,5.64571]
[1733332553083,2.1531592,3780.8,3780.3,2.64528]
[1733332553324,2.1531592,3780.8,3779.8,3.0]
[1733332553536,2.1531592,3780.8,3780.3,2.64528]
[1733332553681,2.1531592,3780.8,3779.6,3.0]
[1733332553881,1.87867866,3780.7,3779.5,0.4979674]
[1733332554125,1.84561592,3780.7,3779.7,2.64571]
[1733332554297,1.84561592,3780.7,3780.1,2.6454]
[1733332554623,1.6303,3780.7,3780.1,2.6454]
[1733332554786,1.6303,3780.7,3780.2,2.64532]
[1733332555881,1.6303,3780.7,3779.8,2.64557]
[1733332556083,0.03306347,3780.6,3779.6,3.13606247]
[1733332556315,1.5711,3780.5,3779.2,3.0]
[1733332556484,1.5711,3780.5,3779.4,3.0]
[1733332556679,1.5711,3780.5,3780.2,2.64529]
[1733332556916,1.5711,3780.5,3780.4,2.64522]
[1733332557117,1.5711,3781.5,3780.1,2.64538]
[1733332557365,1.5711,3781.5,3780.2,3.0]
[1733332557624,1.5711,3781.5,3780.4,3.0]
[1733332557798,1.5711,3781.5,3780.8,2.64487]
[1733332558002,1.5711,3781.5,3780.6,2.64507]
[1733332558326,1.5711,3781.5,3780.4,3.0]
[1733332558483,1.5711,3781.5,3780.2,3.0]
[1733332558692,1.5711,3781.3,3780.0,3.0]
[1733332558904,1.5711,3781.3,3780.5,2.64509]
[1733332559105,1.5711,3781.3,3779.9,2.64553]
[1733332559407,1.5711,3781.3,3780.6,2.64507]
[1733332559946,1.5711,3781.3,3780.0,2.64545]
[1733332560135,2.10002745,3781.3,3780.1,3.0]
[1733332560438,1.5711,3781.3,3780.1,5.64542]
[1733332560639,0.5366552,3781.1,3779.9,3.0]
[1733332560795,1.6193,3781.2,3780.7,2.645]
[1733332561142,1.6193,3781.2,3780.8,2.64488]
[1733332561492,1.65235775,3781.2,3780.0,2.64545]
[1733332561711,1.6193,3781.2,3779.9,3.0]
[1733332561905,1.6193,3781.2,3779.6,0.55]
[1733332561906,1.6193,3781.2,3781.1,2.64473]
[1733332562695,0.5368165,3781.9,3781.1,2.64473]
[1733332562696,1.5067,3781.9,3781.5,2.6444]
[1733332563001,1.5067,3781.9,3781.8,2.64424]
[1733332563221,1.5067,3781.9,3781.5,2.64442]
[1733332563545,1.5067,3781.9,3781.0,3.0]
[1733332564235,1.5067,3781.9,3781.3,2.64455]
[1733332564435,1.5067,3781.9,3781.3,2.64457]
[1733332564640,1.5067,3781.9,3781.4,2.64448]
[1733332564801,1.5067,3781.9,3781.1,2.64466]
[1733332564997,1.5067,3781.9,3780.9,2.64487]
[1733332565235,1.5067,3781.9,3781.0,3.0]
[1733332565447,1.5067,3781.9,3781.8,2.64424]
[1733332565741,0.1,3783.7,3781.8,2.64424]
[1733332565742,1.5067,3783.8,3782.9,2.64345]
[1733332566037,0.69167,3783.7,3782.9,2.64345]
[1733332566286,0.69167,3783.7,3782.0,2.64405]
[1733332566287,0.69167,3783.7,3783.0,2.6434]
[1733332566423,0.69167,3783.7,3781.8,3.0]
[1733332566635,1.5067,3783.8,3781.9,3.0]
[1733332566799,2.02489064,3783.8,3782.4,2.64379]
[1733332566997,2.02489064,3783.8,3782.0,3.19405]
[1733332566998,1.5067,3783.8,3782.5,3.0]
[1733332567198,1.5067,3783.8,3783.7,2.64291]
[1733332567809,1.5067,3783.8,3783.6,2.64292]
[1733332568059,1.5067,3783.8,3783.0,3.0]
[1733332568201,1.5067,3783.8,3783.2,2.64326]
[1733332568399,1.5067,3783.8,3783.4,2.64305]
[1733332568779,1.5067,3783.8,3782.5,5.64373]
[1733332568955,1.5067,3783.8,3783.5,2.64301]
[1733332569247,1.5067,3783.8,3783.7,2.64291]
[1733332569413,1.5067,3783.8,3783.3,2.64315]
[1733332569606,1.5067,3783.8,3782.7,3.0]
[1733332570113,1.5067,3783.8,3783.4,2.6431]
[1733332570313,1.5067,3783.8,3783.5,2.64304]
[1733332570527,1.5067,3783.8,3782.6,5.64366]
[1733332570731,1.5067,3783.8,3782.7,3.0]
[1733332571038,1.5067,3783.8,3783.7,2.64291]
[1733332571241,5.41,3783.9,3783.8,2.64284]
[1733332571541,5.41,3784.0,3783.9,2.64277]
[1733332571758,5.41,3784.0,3783.9,5.64277]
[1733332572040,5.41,3784.0,3783.9,6.19277]
[1733332572337,5.41,3784.0,3783.9,5.64277]
[1733332573239,5.41,3784.0,3783.6,2.64294]
[1733332573443,5.41,3784.0,3783.5,2.64298]
[1733332573652,1.6005,3783.9,3783.1,0.49809109]
[1733332573910,5.41,3784.0,3783.9,2.64277]
[1733332574070,5.41,3784.0,3783.9,5.64277]
[1733332574733,5.41,3784.0,3783.9,2.64277]
[1733332575046,1.6005,3783.9,3783.0,2.6434]
[1733332575216,1.6005,3783.9,3782.4,1.634]
[1733332575422,1.6005,3783.9,3782.9,2.64346]
[1733332575629,1.6005,3783.9,3782.4,4.2778]
[1733332575630,2.13695046,3783.9,3781.9,1.6396]
[1733332575817,1.6517,3783.8,3783.1,2.6433]
[1733332576255,1.6517,3783.8,3781.9,2.13203154]
[1733332576256,1.6517,3783.8,3782.3,2.64389]
[1733332576455,1.6517,3783.8,3782.4,2.64382]
[1733332576636,1.6517,3783.8,3783.6,2.64298]
[1733332576843,1.6517,3783.8,3781.9,2.13203154]
[1733332577039,1.6517,3783.8,3782.1,2.64403]
[1733332577213,1.6517,3783.8,3783.7,2.64291]
[1733332577420,5.41,3784.0,3783.7,2.6429]
[1733332577847,5.41,3784.0,3782.4,2.17539656]
[1733332578072,1.6189,3783.9,3782.5,2.64371]
[1733332578269,1.6189,3782.9,3781.9,0.49243154]
[1733332578470,4.26243,3782.9,3780.9,1.6579]
[1733332578756,1.541,3782.7,3781.5,2.64443]
[1733332578943,0.03304732,3782.6,3780.9,0.48989094]
[1733332579146,1.541,3782.5,3780.8,2.64491]
[1733332579471,1.541,3782.5,3780.0,1.5317]
[1733332579472,1.541,3782.1,3780.0,2.05984182]
[1733332579647,1.541,3781.8,3780.7,2.64494]
[1733332579835,1.541,3781.8,3780.1,5.29086]
[1733332580039,1.541,3781.8,3780.9,2.64482]
[1733332580240,0.03305421,3781.7,3780.7,2.64498]
[1733332580543,3.09919649,3781.7,3780.4,2.64516]
[1733332580744,3.09919649,3781.7,3779.9,2.64556]
[1733332580745,1.541,3781.1,3779.9,2.64556]
[1733332580938,1.541,3781.0,3779.5,2.64584]
[1733332581145,0.53596928,3780.7,3779.4,0.50923401]
[1733332581503,0.53596928,3780.7,3779.3,2.92154821]
[1733332581504,0.03306507,3780.6,3779.5,2.64581]
[1733332581641,1.541,3780.6,3778.9,2.64626]
[1733332581842,1.541,3780.4,3778.2,1.058605]
[1733332582081,1.6395,3780.2,3779.2,2.64604]
[1733332582240,1.6395,3780.0,3779.2,2.64604]
[1733332582440,0.03307507,3779.9,3778.0,1.5317]
[1733332582696,0.03307507,3779.9,3778.1,2.64683]
[1733332582984,1.637,3779.6,3778.2,2.64671]
[1733332583185,0.52412231,3779.7,3777.9,2.64694]
[1733332583186,1.637,3779.4,3777.9,2.64694]
[1733332583369,0.03308015,3779.3,3778.1,2.64683]
[1733332583541,0.03307936,3779.3,3778.1,2.64683]
[1733332583742,0.03307936,3779.2,3777.8,2.64699]
[1733332583945,1.637,3779.1,3777.8,2.64699]
[1733332584151,1.637,3779.1,3778.0,2.64688]
[1733332584370,1.637,3779.1,3778.1,2.6468]
[1733332584579,1.637,3779.1,3777.7,2.64708]
[1733332584786,1.637,3779.1,3777.9,2.64695]
[1733332584947,2.08199279,3779.1,3777.3,2.64736]
[1733332585295,1.637,3778.4,3777.1,3.0]
[1733332585586,0.03308583,3778.3,3777.1,2.64751]
[1733332585797,1.637,3778.4,3776.8,0.49936203]
[1733332586110,1.637,3778.4,3776.5,2.0561485]
[1733332586258,1.637,3778.4,3778.1,2.64676]
[1733332586461,1.637,3778.4,3777.8,2.64697]
[1733332586776,1.637,3778.4,3776.6,3.706927]
[1733332587085,1.637,3778.4,3778.1,2.64682]
[1733332587445,1.637,3778.4,3777.4,3.0]
[1733332587645,1.637,3778.4,3777.9,2.64696]
[1733332587844,1.637,3778.4,3778.0,2.6469]
[1733332588467,1.637,3778.4,3777.5,2.64718]
[1733332588468,1.637,3778.4,3777.5,3.19725]
[1733332588653,1.637,3778.4,3778.2,2.64675]
[1733332589295,1.5988,3778.9,3777.8,0.50884402]
[1733332589496,1.5988,3778.9,3778.5,2.64653]
[1733332589847,1.5988,3778.9,3778.7,2.64636]
[1733332590178,1.5313,3779.4,3778.4,3.0]
[1733332590346,1.5313,3779.4,3778.1,3.0]
[1733332590551,1.5313,3779.4,3778.0,2.64686]
[1733332590552,1.5313,3779.4,3779.2,2.64606]
[1733332590790,2.64471,3781.2,3779.8,2.64562]
[1733332590791,1.5827,3780.5,3779.8,2.64562]
[1733332590999,5.41,3781.1,3778.8,2.64634]
[1733332591000,6.9927,3781.1,3779.4,1.5755]
[1733332591170,6.9927,3781.1,3779.2,3.0]
[1733332591505,0.5361341,3780.9,3780.7,2.64499]
[1733332591793,0.5361341,3780.9,3779.6,2.64578]
[1733332591794,6.9927,3781.1,3780.9,2.64486]
[1733332591991,6.9927,3781.1,3780.6,3.0]
[1733332592189,6.9927,3781.1,3780.3,3.0]
[1733332592497,6.9927,3781.1,3780.9,3.0]
[1733332592741,6.9927,3781.1,3780.5,3.0]
[1733332593011,6.9927,3781.1,3781.0,5.6448]
[1733332593012,5.41,3781.1,3781.0,5.6448]
[1733332593711,5.41,3781.1,3780.8,3.0]
[1733332593928,5.41,3781.1,3780.9,3.0]
[1733332594218,5.41,3781.1,3780.9,2.64487]
[1733332594417,5.41,3781.1,3781.0,2.6448]
[1733332594711,5.41,3781.1,3781.0,5.6448]
[1733332594912,5.41,3781.7,3780.8,3.0]
[1733332595120,5.41,3781.7,3781.3,2.64457]
[1733332595321,5.41,3781.7,3781.6,2.64438]
[1733332595671,5.41,3781.7,3781.6,5.64438]
[1733332597022,5.41,3783.1,3782.5,3.0]
[1733332597170,5.41,3783.1,3782.7,3.0]
[1733332597849,5.41,3783.1,3782.2,3.0]
[1733332597850,6.11205,3783.1,3782.2,3.0]
[1733332597987,6.11205,3783.1,3782.8,2.64353]
[1733332598302,6.11205,3783.1,3781.3,0.55]
[1733332598303,5.41,3783.1,3783.0,2.6434]
[1733332598505,5.41,3783.1,3783.0,5.6434]
[1733332598886,5.41,3783.1,3783.0,6.1934]
[1733332599086,0.1609075,3784.1,3783.8,3.0]
[1733332599290,0.1609075,3784.1,3784.0,2.6427]
[1733332600103,0.1609075,3784.1,3784.0,5.6427]
[1733332601097,0.1609075,3784.1,3784.0,6.1927]
[1733332601293,1.5393,3785.9,3784.2,0.55]
[1733332601499,4.1353203,3785.9,3785.2,2.64184]
[1733332601733,4.1353203,3785.9,3784.5,3.0]
[1733332601734,4.1353203,3785.9,3784.7,3.0]
[1733332601895,4.65578409,3785.9,3784.3,3.0]
[1733332602103,4.65578409,3785.9,3785.1,2.64193]
[1733332602611,6.66,3786.0,3784.9,5.64207]
[1733332602826,6.66,3786.0,3785.9,3.0]
[1733332603838,18.7439299,3786.2,3786.1,3.55]
[1733332604061,18.5830224,3786.2,3786.1,3.55]
[1733332606324,18.5830224,3786.2,3786.1,3.0]
[1733332607066,18.5830224,3786.2,3785.2,1.5239]
[1733332607268,18.5830224,3786.2,3786.1,3.0]
[1733332608362,18.5830224,3786.2,3785.4,3.0]
[1733332608575,18.5830224,3786.2,3785.2,1.5239]
[1733332608764,18.5830224,3786.2,3786.1,3.0]
[1733332608995,18.5830224,3786.2,3785.8,3.0]
[1733332609186,19.49889427,3786.2,3784.7,4.16707]
[1733332609489,19.49889427,3786.2,3785.4,2.64171]
[1733332609686,19.49889427,3786.2,3785.1,2.64187]
[1733332609852,19.49889427,3786.2,3785.3,2.64177]
[1733332610036,19.49889427,3786.2,3784.9,2.64201]
[1733332610243,1.5557,3786.0,3782.4,0.1]
[1733332610443,1.5557,3785.2,3783.1,1.5081]
[1733332610943,1.5557,3785.2,3783.2,2.64326]
[1733332611138,1.5557,3785.2,3784.2,2.6425]
[1733332611347,1.5557,3785.2,3783.1,1.5081]
[1733332611348,2.67496581,3785.1,3783.1,1.5081]
[1733332611678,0.47686627,3785.0,3783.1,1.5081]
[1733332611854,1.5557,3785.2,3784.4,2.64241]
[1733332612041,1.5557,3785.2,3784.5,2.64235]
[1733332612241,1.5557,3785.2,3783.1,1.5081]
[1733332612475,1.5557,3785.2,3783.3,0.55]
[1733332612681,1.5557,3785.2,3783.4,0.33562161]
[1733332612880,1.71127,3785.2,3783.5,0.55]
[1733332613090,1.5557,3785.2,3784.2,3.0]
[1733332613243,1.5557,3785.2,3784.1,3.55]
[1733332613440,0.52320081,3785.4,3785.2,2.6418]
[1733332613856,0.52320081,3785.4,3785.3,2.64179]
[1733332614078,18.5830224,3786.2,3785.6,2.64158]
[1733332614256,18.5830224,3786.2,3785.0,6.13075318]
[1733332614457,18.5830224,3786.2,3785.4,3.0]
[1733332614660,18.5830224,3786.2,3785.5,2.64165]
[1733332614998,18.5830224,3786.2,3786.1,2.64124]
[1733332615317,18.5830224,3786.2,3785.4,3.0]
[1733332615318,18.5830224,3786.2,3785.9,5.64136]
[1733332615964,18.5830224,3786.2,3784.8,3.0]
[1733332616166,18.5830224,3786.2,3786.1,2.64124]
[1733332616704,18.5830224,3786.2,3785.8,2.64143]
[1733332616932,21.1790427,3786.2,3784.6,2.64222]
[1733332617210,1.5345,3786.1,3784.9,2.64207]
[1733332617366,1.5345,3786.1,3784.1,1.6062]
[1733332617568,3.17865013,3785.7,3784.1,0.50457498]
[1733332617803,0.53713013,3785.7,3784.6,2.64228]
[1733332618066,0.53713013,3785.7,3783.0,0.33562161]
[1733332618067,2.64189,3785.2,3783.9,2.64276]
[1733332618267,1.5345,3785.0,3783.9,2.64276]
[1733332618580,0.53427671,3784.7,3783.3,2.64313]
[1733332619085,0.53427671,3784.7,3782.5,1.5282]
[1733332619086,0.53427671,3784.7,3783.5,2.64302]
[1733332619285,3.17649671,3784.7,3783.5,2.64302]
[1733332619625,3.17649671,3784.7,3783.0,2.64335]
[1733332619626,2.6425,3784.3,3783.0,2.64339]
[1733332619764,1.59043714,3784.2,3781.9,1.5568]
[1733332619960,1.59043714,3784.2,3783.0,2.64336]
[1733332620406,1.59043714,3784.2,3781.9,1.5568]
[1733332620407,0.53522785,3783.9,3781.9,1.5568]
[1733332620817,0.53522785,3783.9,3782.0,2.6441]
[1733332621110,0.53522785,3783.9,3783.0,2.6434]
[1733332621403,0.53522785,3783.9,3782.8,3.0]
[1733332621574,0.56826556,3783.9,3782.6,3.0]
[1733332621775,0.53522785,3783.9,3782.5,3.0]
[1733332622015,0.53522785,3783.9,3782.5,5.6437]
[1733332622318,0.53522785,3783.9,3782.9,2.64345]
[1733332622469,1.5574,3784.2,3782.6,2.64368]
[1733332622680,1.5574,3784.2,3783.4,2.64307]
[1733332622890,2.0798403,3784.2,3782.8,2.64354]
[1733332623107,0.03303506,3784.1,3782.8,3.0]
[1733332623423,1.5005,3783.7,3781.3,1.6201]
[1733332623714,1.5005,3783.7,3782.3,2.64389]
[1733332623870,1.5005,3783.7,3783.3,2.64313]
[1733332624093,1.5005,3783.7,3781.7,2.64427]
[1733332624299,1.914828,3783.7,3781.8,2.64424]
[1733332624484,1.5005,3783.7,3782.9,2.64346]
[1733332624685,1.5005,3783.7,3782.5,3.0]
[1733332624686,0.03303864,3783.6,3782.5,3.0]
[1733332625026,0.53967002,3783.5,3782.0,5.6441]
[1733332625313,1.5005,3783.7,3783.2,2.64325]
[1733332625512,2.02853465,3783.7,3781.6,5.64438]
[1733332625724,2.87893975,3783.6,3782.4,3.0]
[1733332625939,0.23588975,3783.6,3782.0,2.64404]
[1733332626225,1.511,3782.7,3781.3,0.50913244]
[1733332626716,1.511,3782.7,3780.8,1.5942]
[1733332626717,0.03304999,3782.6,3781.4,2.64448]
[1733332626866,1.511,3782.7,3780.9,2.64487]
[1733332627072,1.511,3782.7,3780.8,1.5942]
[1733332627073,1.511,3782.7,3780.8,2.09591594]
[1733332627422,0.52766443,3782.6,3781.7,2.64429]
[1733332627711,0.52766443,3782.6,3781.9,2.64416]
[1733332628011,0.52766443,3782.6,3781.6,2.64432]
[1733332628012,0.03304844,3782.5,3781.6,2.64432]
[1733332628211,0.52766443,3782.6,3781.9,2.64411]
[1733332628424,0.52766443,3782.6,3781.5,2.64438]
[1733332628713,1.5792,3782.4,3781.3,2.64458]
[1733332628912,0.0330531,3782.3,3781.4,2.6445]
[1733332629098,1.5792,3782.4,3781.4,2.6445]
[1733332629304,1.5792,3782.4,3780.9,2.64487]
[1733332629305,1.61225308,3782.4,3781.2,2.64464]
[1733332629504,1.61225308,3782.4,3780.8,0.50171594]
[1733332629712,1.5792,3782.1,3781.2,2.64464]
[1733332629911,4.22323,3782.1,3780.2,2.64536]
[1733332630218,0.03305666,3782.0,3781.0,3.0]
[1733332630422,2.64425,3781.8,3780.5,2.64514]
[1733332630623,1.5792,3781.6,3780.2,2.64529]
[1733332630787,1.61226163,3781.5,3780.2,2.64529]
[1733332631132,4.4713774,3781.5,3780.2,2.64529]
[1733332631427,0.03306354,3781.4,3779.5,2.64582]
[1733332631611,2.64483,3781.0,3779.7,2.64564]
[1733332631810,0.03306664,3780.9,3779.2,4.19828639]
[1733332632133,0.54139132,3781.0,3780.1,2.64542]
[1733332632285,0.54139132,3781.0,3779.5,2.64579]
[1733332632630,0.54139132,3781.0,3779.9,2.64556]
[1733332632777,0.54139132,3781.0,3780.1,2.64542]
[1733332632978,0.54139132,3781.0,3779.3,2.64594]
[1733332633221,2.64494,3780.8,3779.4,2.64586]
[1733332633399,0.03306887,3780.7,3779.5,2.64585]
[1733332633928,0.03306887,3780.7,3779.2,3.69183486]
[1733332634129,0.55,3780.6,3779.2,3.69183486]
[1733332634428,4.26225,3780.5,3779.3,2.64594]
[1733332634940,4.26673,3780.1,3779.2,3.69183486]
[1733332635085,1.6213,3779.7,3779.2,3.69183486]
[1733332635281,0.03307688,3779.6,3779.2,3.69183486]
[1733332635487,1.6213,3779.7,3779.2,3.69183486]
[1733332636190,1.6213,3779.7,3779.6,2.64578]
[1733332636487,1.6514,3781.0,3779.2,3.69183486]
[1733332636701,2.64458,3781.4,3779.2,3.69183486]
[1733332636702,1.6514,3780.7,3779.2,3.69183486]
[1733332637089,0.03306788,3780.6,3779.2,3.69183486]
[1733332637312,1.6514,3780.5,3779.2,3.69183486]
[1733332637515,0.54234291,3780.1,3779.4,2.64592]
[1733332637719,0.54234291,3780.1,3779.5,2.64585]
[1733332637896,0.54234291,3780.1,3779.9,2.64552]
[1733332638301,0.54234291,3780.1,3779.3,3.0]
[1733332638517,1.6514,3780.5,3780.0,2.64548]
[1733332638924,1.6514,3780.5,3779.4,2.64592]
[1733332639227,1.6514,3780.5,3779.9,2.64556]
[1733332639414,0.54049047,3780.3,3779.3,3.0]
[1733332639621,0.54049047,3780.3,3779.7,2.64566]
[1733332639929,0.54049047,3780.3,3779.5,2.64584]
[1733332640088,1.65226887,3780.2,3779.2,3.69183486]
[1733332640289,1.6192,3780.0,3779.2,3.69183486]
[1733332640584,1.6192,3779.7,3779.2,3.69183486]
[1733332641577,1.6192,3779.7,3779.4,2.64591]
[1733332641734,2.15149523,3779.7,3779.2,3.69183486]
[1733332641931,0.03307566,3779.6,3779.2,3.69183486]
[1733332642142,2.15149523,3779.7,3779.2,3.69183486]
[1733332642686,1.60277764,3779.6,3779.2,3.69183486]
[1733332642993,1.5697,3779.6,3779.2,3.69183486]
[1733332643192,0.03307812,3779.5,3779.2,3.69183486]
[1733332643411,4.17369,3779.3,3779.2,2.92168631]
[1733332643613,3.19592,3779.4,3778.4,3.82535934]
[1733332643811,1.5277,3778.9,3778.4,3.82535934]
[1733332644049,1.5277,3778.7,3778.4,3.82535934]
[1733332644530,0.03308494,3778.6,3778.4,3.82535934]
[1733332644689,4.17425,3778.5,3778.4,3.82535934]
[1733332645509,2.64711,3777.7,3777.6,2.26837787]
[1733332645711,1.5277,3777.2,3776.7,4.09240831]
[1733332645911,0.03309899,3777.1,3776.7,4.09240831]
[1733332646511,2.64767,3776.9,3776.7,4.09240831]
[1733332646711,1.5277,3777.0,3776.7,4.09240831]
[1733332646957,0.3,3777.6,3776.0,2.64829]
[1733332646958,2.64754,3777.1,3776.0,2.64829]
[1733332647159,0.03310421,3777.0,3776.0,2.64829]
[1733332647307,0.52859028,3776.8,3776.0,2.64829]
[1733332647511,1.5277,3776.7,3776.0,2.64829]
[1733332647771,1.5277,3776.7,3776.2,2.64816]
[1733332647979,1.5277,3776.7,3776.0,2.6483]
[1733332648118,1.5277,3776.7,3775.9,4.2259328]
[1733332648766,1.5277,3776.7,3776.2,2.64815]
[1733332648911,1.5277,3776.7,3775.9,4.2259328]
[1733332649230,1.5277,3776.7,3776.6,2.64788]
[1733332649554,1.5277,3776.7,3776.3,2.64809]
[1733332649768,0.03310131,3776.6,3775.9,4.2259328]
[1733332649915,1.56080501,3776.7,3775.9,4.2259328]
[1733332650115,1.5277,3776.7,3776.6,2.64788]
[1733332650314,1.5277,3776.7,3775.9,4.2259328]
[1733332650740,1.5277,3776.7,3776.4,2.64798]
[1733332650975,1.624,3777.2,3776.1,2.64823]
[1733332651131,8.79,3778.5,3777.6,2.64717]
[1733332651132,1.624,3778.5,3777.6,2.64717]
[1733332651335,1.624,3778.5,3776.8,3.0]
[1733332651547,1.624,3778.5,3778.4,2.64662]
[1733332651748,0.54025709,3779.3,3778.7,2.64635]
[1733332652068,0.54025709,3779.3,3778.8,2.64633]
[1733332652234,1.6068,3779.5,3779.2,2.64604]
[1733332652430,1.6068,3779.5,3778.2,0.55]
[1733332652644,0.03307808,3779.4,3777.8,1.6028]
[1733332652866,0.03307808,3779.4,3777.5,3.55]
[1733332653036,1.6068,3779.3,3778.1,2.64681]
[1733332653242,1.6068,3779.3,3777.5,0.55]
[1733332653579,0.53269636,3779.0,3778.3,2.64668]
[1733332653777,1.6068,3779.3,3778.8,2.64633]
[1733332653984,1.6068,3779.3,3778.8,2.64632]
[1733332654304,1.6068,3779.3,3779.0,2.64617]
[1733332654432,1.6068,3779.3,3778.6,2.64648]
[1733332654632,1.6068,3779.3,3778.7,2.64634]
[1733332654884,1.6068,3779.3,3778.8,2.64633]
[1733332655063,1.6068,3779.3,3778.5,2.64653]
[1733332655270,1.6068,3779.3,3779.0,2.6462]
[1733332655879,1.6068,3779.3,3778.2,0.55]
[1733332656092,1.5009,3780.0,3778.8,2.64634]
[1733332656237,1.5009,3780.0,3778.7,0.55]
[1733332656444,1.53397437,3780.0,3779.1,2.64608]
[1733332656678,4.17947437,3780.0,3778.9,2.64625]
[1733332656878,4.17947437,3780.0,3776.9,2.74765]
[1733332656879,2.64597,3779.4,3778.1,2.64678]
[1733332657091,0.03308397,3779.3,3777.1,1.5088]
[1733332657388,0.04647058,3779.2,3778.6,2.64647]
[1733332657738,0.04647058,3779.2,3778.2,2.64675]
[1733332657947,0.04647058,3779.2,3778.7,2.64639]
[1733332658148,0.04647058,3779.2,3779.1,2.64613]
[1733332658666,0.04647058,3779.2,3778.8,2.64629]
[1733332658979,0.04647058,3779.2,3777.9,3.19697]
[1733332659186,0.04647058,3779.2,3779.1,2.64613]